[Event "EYCC O18-ch 2024"]
[Site "Prague"]
[Date "2024.08.23"]
[Round "2.6"]
[White "Razafindratsima, Timothe"]
[Black "Kreken, Eivind Grunt"]
[Result "1-0"]
[ECO "B47"]
[WhiteElo "2457"]
[BlackElo "2294"]
[Annotator "RC"]
[PlyCount "123"]
[EventDate "2024.08.19"]
[EventType "swiss"]
[EventCountry "CZE"]
[SourceTitle "playchess.com"]
[Source "ChessBase"]
[SourceQuality "1"]
[TimeControl "5400+30"]

1. e4 {[%emt 0:00:02]} c5 {[%emt 0:00:07]} 2. Nf3 {[%emt 0:00:08]} e6 {[%emt 0:00:08]} 3. d4 {[%emt 0:00:14]} cxd4 {[%emt 0:00:07]} 4. Nxd4 {[%emt 0:00:08]} Nc6 {[%emt 0:00:14]} 5. Nc3 {[%emt 0:00:33]} Qc7 {[%emt 0:00:12]} 6. Be2 {[%emt 0:00:28]} Nf6 {[%emt 0:00:45]} 7. Ndb5 {[%emt 0:09:31]} Qb8 {[%emt 0:00:52]} 8. f4 {[%emt 0:00:06]} a6 {[%emt 0:00:59]} 9. e5 {[%emt 0:02:18]} axb5 {[%emt 0:01:05]} 10. exf6 {[%emt 0:00:07]} b4 {[%emt 0:01:45]} 11. fxg7 {[%emt 0:03:53]} Bxg7 {[%emt 0:00:36]} 12. Nb5 {[%emt 0:00:06]} O-O {[%emt 0:02:05]} 13. O-O {[%emt 0:02:42]} d5 {[%emt 0:01:50]} 14. Kh1 {[%emt 0:07:32]} Bd7 {[%emt 0:22:51]} 15. f5 {[%emt 0:27:52]} exf5 {[%emt 0:03:26]} 16. Bf4 {[%emt 0:00:41]} Be5 {[%emt 0:02:22]} 17. Qxd5 {[%emt 0:07:38]} Be6 {[%emt 0:13:21]} 18. Bxe5 {[%emt 0:01:11]} Qxe5 {[%emt 0:01:21]} 19. Qxe5 {[%emt 0:01:58]} Nxe5 {[%emt 0:00:06]} 20. Rf4 {[%emt 0:09:06]} Rfc8 {[%emt 0:03:51]} 21. Nd4 {[%emt 0:05:15]} Ra5 {[%emt 0:10:44]} 22. Kg1 {[%emt 0:02:48]} Bd7 {[%emt 0:04:19]} 23. Bf1 {[%emt 0:04:15]} Kf8 {[%emt 0:08:41]} 24. h3 Rc7 {[%emt 0:03:31]} 25. Rf2 {[%emt 0:07:39]} Rd5 {[%emt 0:10:37]} 26. Nxf5 {[%emt 0:01:27]} Nf3+ {[%emt 0:01:36]} 27. Rxf3 {[%emt 0:00:06]} Bxf5 {[%emt 0:03:19]} 28. Rf4 {[%emt 0:00:27]} Rxc2 {[%emt 0:00:55]} 29. Rxb4 {[%emt 0:00:04]} Rdd2 {[%emt 0:01:42]} 30. Rxb7 {[%emt 0:03:01]} Be4 {[%emt 0:00:06]} 31. Rb8+ {[%emt 0:00:06]} Kg7 {[%emt 0:00:22]} 32. Rb3 {[%emt 0:00:33]} Kf8 {[%emt 0:01:25]} 33. Rb8+ {[%emt 0:02:42]} Kg7 {[%emt 0:00:09]} 34. Rb3 {[%emt 0:01:16]} Kf8 {[%emt 0:00:01]} 35. Rg3 {[%emt 0:00:04]} Rxb2 {[%emt 0:00:11]} 36. a3 {[%emt 0:00:35]} f5 {[%emt 0:02:04]} 37. Rc1 {[%emt 0:00:03]} Rbc2 38. Rxc2 {[%emt 0:01:17]} Rxc2 {[%emt 0:00:18]} 39. Re3 {[%emt 0:00:05]} Kg7 {[%emt 0:00:45]} 40. Re2 {[%emt 0:00:58]} Rc1 {[%emt 0:00:20]} 41. Re3 {[%emt 0:00:08]} Kf6 {[%emt 0:00:39]} 42. Kf2 {[%emt 0:00:05]} Ke5 {[%emt 0:00:50]} 43. g3 {[%emt 0:01:01]} f4 {[%emt 0:00:41]} 44. gxf4+ {[%emt 0:00:04]} Kxf4 {[%emt 0:00:02]} 45. Rb3 {[%emt 0:00:06]} Rc2+ {[%emt 0:00:26]} 46. Be2 {[%emt 0:00:08]} Ra2 {[%emt 0:00:09]} 47. Rc3 {[%emt 0:02:09]} Bd5 {[%emt 0:00:51]} 48. Ke1 {[%emt 0:00:13]} Be4 {[%emt 0:00:21]} 49. Bc4 {[%emt 0:00:27]} Ra1+ {[%emt 0:00:37]} 50. Kd2 {[%emt 0:00:08]} h5 {[%emt 0:00:16]} 51. Bd3 {[%emt 0:01:24]} Bxd3 {[%emt 0:00:47]} 52. Kxd3 {[%emt 0:00:10]} h4 {[%emt 0:00:30]} 53. Kc4 {[%emt 0:00:39]} Rg1 {[%emt 0:00:55]} 54. a4 {[%emt 0:00:08]} Ra1 {[%emt 0:00:37]} 55. Kb5 {[%emt 0:00:48]} Rb1+ {[%emt 0:00:12]} 56. Kc4 {[%emt 0:00:53]} Ra1 {[%emt 0:00:14]} 57. Kb4 {[%emt 0:00:02]} Rg1 {[%emt 0:01:04]} 58. a5 {[%emt 0:00:09]} Ra1 {[%emt 0:00:36]} 59. Ra3 {[%emt 0:00:23]} Rg1 {[%emt 0:00:26]} 60. a6 {[%emt 0:00:08]} Rg8 {[%emt 0:00:35]} 61. a7 {[%emt 0:00:13]} Ra8 {[%emt 0:00:08]} 62. Kb5 {[%emt 0:00:11]} 1-0

[Event "EYCC O18-ch 2024"]
[Site "Prague"]
[Date "2024.08.23"]
[Round "2.6"]
[White "Falkevall, Axel"]
[Black "Gonzalez Castillo, Jose Javier"]
[Result "1/2-1/2"]
[ECO "E17"]
[WhiteElo "2325"]
[BlackElo "2196"]
[Annotator "ChessBase"]
[PlyCount "101"]
[EventDate "2024.08.19"]
[EventType "swiss"]
[EventCountry "CZE"]
[SourceTitle "playchess.com"]
[Source "ChessBase"]
[SourceQuality "1"]
[TimeControl "5400+30"]

1. d4 {[%emt 0:00:08]} Nf6 {[%emt 0:00:35]} 2. c4 {[%emt 0:00:18]} e6 {[%emt 0:00:20]} 3. Nf3 {[%emt 0:00:14]} b6 {[%emt 0:00:53]} 4. g3 {[%emt 0:00:39]} Bb7 {[%emt 0:00:09]} 5. Bg2 {[%emt 0:00:06]} Be7 {[%emt 0:01:46]} 6. O-O {[%emt 0:00:57]} O-O {[%emt 0:00:07]} 7. d5 {[%emt 0:00:15]} exd5 {[%emt 0:02:31]} 8. Nh4 {[%emt 0:00:59]} c6 {[%emt 0:01:35]} 9. cxd5 {[%emt 0:00:15]} Nxd5 {[%emt 0:00:08]} 10. Nf5 {[%emt 0:00:06]} Nc7 {[%emt 0:00:25]} 11. e4 {[%emt 0:01:31]} d5 {[%emt 0:00:31]} 12. Re1 {[%emt 0:01:44]} Re8 {[%emt 0:03:51]} 13. Nc3 {[%emt 0:02:22]} Bf6 {[%emt 0:00:58]} 14. Qg4 {[%emt 0:15:09]} Bc8 {[%emt 0:09:50]} 15. Bf4 {[%emt 0:11:12]} g6 {[%emt 0:02:45]} 16. Nh6+ {[%emt 0:01:50]} Kg7 {[%emt 0:01:20]} 17. Qf3 {[%emt 0:01:46]} Be6 {[%emt 0:09:37]} 18. Bxc7 {[%emt 0:12:07]} Qxc7 {[%emt 0:00:27]} 19. exd5 {[%emt 0:00:46]} cxd5 {[%emt 0:03:37]} 20. Nxd5 {[%emt 0:06:00]} Bxd5 {[%emt 0:00:15]} 21. Qxd5 {[%emt 0:00:12]} Na6 {[%emt 0:00:27]} 22. Qb5 {[%emt 0:02:56]} Rxe1+ {[%emt 0:04:08]} 23. Rxe1 {[%emt 0:00:03]} Rd8 {[%emt 0:03:42]} 24. Ng4 {[%emt 0:01:14]} Nc5 {[%emt 0:00:45]} 25. Nxf6 {[%emt 0:01:01]} Kxf6 {[%emt 0:01:12]} 26. Qc4 {[%emt 0:05:52]} Qd6 {[%emt 0:01:56]} 27. Re3 {[%emt 0:08:20]} Kg7 {[%emt 0:02:41]} 28. Bf1 {[%emt 0:05:03]} Qf6 {[%emt 0:03:12]} 29. Qc3 {[%emt 0:07:19]} Qxc3 {[%emt 0:01:32]} 30. Rxc3 {[%emt 0:02:20]} Rd1 {[%emt 0:00:12]} 31. Re3 {[%emt 0:04:50]} a5 {[%emt 0:04:12]} 32. Kg2 {[%emt 0:04:04]} Rd4 {[%emt 0:05:21]} 33. b3 {[%emt 0:02:03]} Re4 {[%emt 0:01:54]} 34. Kf3 {[%emt 0:00:40]} f5 {[%emt 0:00:35]} 35. Bb5 {[%emt 0:01:13]} Kf6 {[%emt 0:01:09]} 36. h4 {[%emt 0:00:31]} Ke5 {[%emt 0:01:48]} 37. Bc6 {[%emt 0:00:14]} Rxe3+ {[%emt 0:00:09]} 38. Kxe3 {[%emt 0:00:02]} Kd6 {[%emt 0:00:12]} 39. Bb5 {[%emt 0:00:40]} Ne4 {[%emt 0:00:35]} 40. Bc4 {[%emt 0:00:52]} Ke5 {[%emt 0:02:06]} 41. f4+ {[%emt 0:00:23]} Kf6 {[%emt 0:01:57]} 42. g4 {[%emt 0:00:16]} Ke7 {[%emt 0:03:01]} 43. g5 {[%emt 0:00:50]} Ng3 {[%emt 0:01:56]} 44. Kd4 {[%emt 0:00:57]} Kd6 {[%emt 0:00:01]} 45. Bg8 {[%emt 0:00:28]} Nh5 {[%emt 0:00:02]} 46. Ke3 {[%emt 0:00:27]} Ke7 {[%emt 0:00:01]} 47. a4 {[%emt 0:01:15]} Kf8 {[%emt 0:00:11]} 48. Bc4 {[%emt 0:00:07]} Ke7 {[%emt 0:00:03]} 49. Bg8 {[%emt 0:00:10]} Kf8 {[%emt 0:00:03]} 50. Bc4 {[%emt 0:00:04]} Ke7 {[%emt 0:00:02]} 51. Bg8 1/2-1/2

[Event "EYCC O18-ch 2024"]
[Site "Prague"]
[Date "2024.08.23"]
[Round "2.7"]
[White "Hercegovac, Neven"]
[Black "Stalmach, Richard"]
[Result "0-1"]
[ECO "B90"]
[WhiteElo "2278"]
[BlackElo "2443"]
[Annotator "ChessBase"]
[PlyCount "114"]
[EventDate "2024.08.19"]
[EventType "swiss"]
[EventCountry "CZE"]
[SourceTitle "playchess.com"]
[Source "ChessBase"]
[SourceQuality "1"]
[TimeControl "5400+30"]

1. e4 {[%emt 0:00:03]} c5 {[%emt 0:00:04]} 2. Nf3 {[%emt 0:00:05]} d6 {[%emt 0:00:17]} 3. d4 {[%emt 0:00:06]} cxd4 {[%emt 0:00:03]} 4. Nxd4 {[%emt 0:00:05]} Nf6 {[%emt 0:00:04]} 5. Nc3 {[%emt 0:00:05]} a6 {[%emt 0:00:03]} 6. h3 {[%emt 0:00:14]} e5 {[%emt 0:00:07]} 7. Nf3 {[%emt 0:00:16]} h6 {[%emt 0:02:47]} 8. Bc4 {[%emt 0:00:15]} Be6 {[%emt 0:00:07]} 9. Bb3 {[%emt 0:00:04]} Be7 {[%emt 0:01:34]} 10. Be3 {[%emt 0:00:51]} O-O {[%emt 0:06:34]} 11. g4 {[%emt 0:10:27]} Bxb3 {[%emt 0:06:58]} 12. axb3 {[%emt 0:00:49]} Nc6 {[%emt 0:03:56]} 13. g5 {[%emt 0:01:35]} hxg5 {[%emt 0:00:06]} 14. Nxg5 {[%emt 0:00:45]} d5 {[%emt 0:01:28]} 15. exd5 {[%emt 0:06:12]} Nb4 {[%emt 0:04:04]} 16. Rg1 {[%emt 0:07:09]} Nfxd5 {[%emt 0:05:49]} 17. Nxd5 {[%emt 0:16:29]} Qxd5 {[%emt 0:00:55]} 18. Qxd5 {[%emt 0:02:31]} Nxd5 {[%emt 0:00:05]} 19. Bd2 {[%emt 0:01:05]} Rac8 {[%emt 0:08:34]} 20. c3 {[%emt 0:01:02]} Rc6 {[%emt 0:10:50]} 21. O-O-O {[%emt 0:03:43]} Rd8 {[%emt 0:01:49]} 22. Kb1 {[%emt 0:01:41]} Nf4 {[%emt 0:06:25]} 23. Bxf4 {[%emt 0:04:08]} exf4 {[%emt 0:00:12]} 24. Rxd8+ {[%emt 0:02:07]} Bxd8 25. Nf3 {[%emt 0:03:08]} Rh6 {[%emt 0:05:30]} 26. Rh1 {[%emt 0:06:58]} Bb6 {[%emt 0:05:27]} 27. Ne5 {[%emt 0:03:36]} Re6 {[%emt 0:04:52]} 28. Nd3 {[%emt 0:00:12]} f3 {[%emt 0:00:40]} 29. Ne1 {[%emt 0:01:38]} Re2 {[%emt 0:02:21]} 30. Nxf3 {[%emt 0:00:09]} Rxf2 {[%emt 0:00:04]} 31. Ne5 {[%emt 0:00:29]} Bc7 {[%emt 0:02:45]} 32. Nd3 {[%emt 0:00:55]} Rd2 {[%emt 0:10:11]} 33. Nc5 {[%emt 0:00:42]} Bb6 {[%emt 0:00:03]} 34. Ne4 {[%emt 0:02:57]} Rg2 {[%emt 0:01:28]} 35. Nd6 {[%emt 0:00:57]} Bg1 {[%emt 0:00:43]} 36. h4 {[%emt 0:04:23]} b6 {[%emt 0:00:04]} 37. Rh3 {[%emt 0:04:05]} Bc5 {[%emt 0:05:07]} 38. Nc4 {[%emt 0:05:04]} b5 {[%emt 0:00:12]} 39. Ne5 {[%emt 0:00:14]} Bd6 {[%emt 0:00:22]} 40. Nc6 {[%emt 0:02:45]} Bg3 {[%emt 0:03:14]} 41. h5 {[%emt 0:01:42]} Kh7 {[%emt 0:00:45]} 42. Nd4 {[%emt 0:00:37]} Be5 {[%emt 0:00:14]} 43. Nc6 {[%emt 0:01:27]} Bg3 {[%emt 0:00:13]} 44. Nd4 {[%emt 0:00:02]} Be5 {[%emt 0:00:05]} 45. Nc6 {[%emt 0:00:03]} Rh2 {[%emt 0:01:56]} 46. Rf3 {[%emt 0:01:39]} Bf6 {[%emt 0:00:03]} 47. Nb4 {[%emt 0:00:16]} Rxh5 {[%emt 0:00:35]} 48. Nxa6 {[%emt 0:00:10]} Kg6 {[%emt 0:01:44]} 49. Nb4 {[%emt 0:02:43]} Rf5 {[%emt 0:00:23]} 50. Rg3+ {[%emt 0:00:53]} Kh5 {[%emt 0:00:16]} 51. c4 {[%emt 0:00:30]} g5 {[%emt 0:00:25]} 52. Nd5 {[%emt 0:00:42]} g4 {[%emt 0:00:46]} 53. Ne3 {[%emt 0:02:08]} Rf4 {[%emt 0:01:12]} 54. Rg1 {[%emt 0:01:34]} Bd4 {[%emt 0:00:26]} 55. Rh1+ {[%emt 0:00:11]} Kg5 {[%emt 0:00:04]} 56. Nd5 {[%emt 0:00:10]} Rf2 {[%emt 0:00:31]} 57. cxb5 {[%emt 0:01:40]} g3 {[%emt 0:00:09]} 0-1

[Event "EYCC O18-ch 2024"]
[Site "Prague"]
[Date "2024.08.23"]
[Round "2.7"]
[White "Kusiak, Mateusz"]
[Black "Koutlas, Nikolaos"]
[Result "0-1"]
[ECO "B22"]
[WhiteElo "1887"]
[BlackElo "2322"]
[Annotator "ChessBase"]
[PlyCount "94"]
[EventDate "2024.08.19"]
[EventType "swiss"]
[EventCountry "CZE"]
[SourceTitle "playchess.com"]
[Source "ChessBase"]
[SourceQuality "1"]
[TimeControl "5400+30"]

1. e4 c5 2. c3 e6 3. d4 d5 4. exd5 exd5 5. Nf3 Nf6 6. Bb5+ Nc6 7. O-O Be7 8. dxc5 Bxc5 9. Nbd2 O-O 10. Nb3 Bb6 11. Re1 Bg4 12. Be3 Ne4 13. Qc2 Bxf3 14. gxf3 Nd6 15. Bd3 Qh4 16. Bxb6 axb6 17. Qd2 Rfd8 18. Qe3 Re8 19. Qxb6 Ne5 20. Rxe5 Rxe5 21. Qxd6 Qf4 22. Qb4 Qxf3 23. Bb5 Rg5+ 24. Kf1 Qg2+ 25. Ke2 Re5+ 26. Kd3 Qxf2 27. Nd2 Qf5+ 28. Kd4 b6 29. Bd7 Re4+ 30. Kd3 Re6+ 31. Kd4 Qg4+ 32. Kxd5 Qxb4 33. cxb4 Rd8 34. Kc4 Rxd7 35. Nb3 Re5 36. a4 Rc7+ 37. Kd4 Rh5 38. b5 Rh4+ 39. Kd5 Rb4 40. Rc1 Rxc1 41. Nxc1 Rxa4 42. Nd3 f5 43. Kc6 Rd4 44. Ne5 Re4 45. Kd5 Re2 46. b4 f4 47. Kd4 Rxe5 0-1

[Event "EYCC O18-ch 2024"]
[Site "Prague"]
[Date "2024.08.23"]
[Round "2.8"]
[White "Levin, Guy"]
[Black "Sahakyan, Aleks"]
[Result "1/2-1/2"]
[ECO "D50"]
[WhiteElo "2436"]
[BlackElo "2287"]
[Annotator "ChessBase"]
[PlyCount "146"]
[EventDate "2024.08.19"]
[EventType "swiss"]
[EventCountry "CZE"]
[SourceTitle "playchess.com"]
[Source "ChessBase"]
[SourceQuality "1"]
[TimeControl "5400+30"]

1. d4 {[%emt 0:00:11]} d5 {[%emt 0:00:06]} 2. c4 {[%emt 0:00:08]} e6 {[%emt 0:00:10]} 3. Nc3 {[%emt 0:00:16]} Nf6 {[%emt 0:00:07]} 4. Bg5 {[%emt 0:00:12]} Bb4 {[%emt 0:01:18]} 5. Qa4+ {[%emt 0:01:44]} Nc6 {[%emt 0:00:07]} 6. Nf3 {[%emt 0:00:12]} h6 {[%emt 0:00:20]} 7. Bxf6 {[%emt 0:00:36]} Qxf6 {[%emt 0:00:06]} 8. e3 {[%emt 0:01:10]} O-O {[%emt 0:00:46]} 9. Rc1 {[%emt 0:09:34]} Bd7 {[%emt 0:11:23]} 10. Qb3 {[%emt 0:06:08]} a5 {[%emt 0:11:24]} 11. a3 {[%emt 0:06:54]} a4 {[%emt 0:06:39]} 12. Qd1 {[%emt 0:06:03]} Ba5 {[%emt 0:01:57]} 13. cxd5 {[%emt 0:05:46]} exd5 {[%emt 0:00:30]} 14. Bd3 {[%emt 0:01:05]} Ne7 {[%emt 0:06:43]} 15. O-O {[%emt 0:03:46]} Bxc3 {[%emt 0:06:26]} 16. Rxc3 {[%emt 0:00:18]} Rfc8 {[%emt 0:00:48]} 17. Ne5 {[%emt 0:04:46]} Bf5 {[%emt 0:04:48]} 18. Bxf5 {[%emt 0:09:38]} Qxf5 {[%emt 0:03:03]} 19. Nd3 {[%emt 0:02:43]} Ra6 {[%emt 0:10:20]} 20. Nc5 {[%emt 0:04:04]} Rg6 {[%emt 0:02:37]} 21. Kh1 {[%emt 0:06:11]} Qg5 {[%emt 0:05:00]} 22. Qf3 {[%emt 0:03:15]} Nf5 {[%emt 0:03:32]} 23. Qh3 {[%emt 0:01:35]} b6 {[%emt 0:04:32]} 24. Nd3 {[%emt 0:03:35]} Nd6 {[%emt 0:05:22]} 25. Rfc1 {[%emt 0:01:54]} Re6 {[%emt 0:02:29]} 26. Nf4 {[%emt 0:05:08]} Ne4 {[%emt 0:02:28]} 27. Kg1 {[%emt 0:03:36]} Nxc3 {[%emt 0:05:51]} 28. Nxe6 {[%emt 0:00:08]} Ne2+ {[%emt 0:01:29]} 29. Kf1 {[%emt 0:00:15]} fxe6 {[%emt 0:02:14]} 30. Qxe6+ {[%emt 0:00:09]} Kh7 {[%emt 0:00:01]} 31. Kxe2 {[%emt 0:00:15]} Rf8 {[%emt 0:00:01]} 32. Qh3 {[%emt 0:09:18]} c5 {[%emt 0:00:39]} 33. Qg3 {[%emt 0:00:58]} Qf6 {[%emt 0:00:51]} 34. Rd1 {[%emt 0:00:41]} Qc6 {[%emt 0:00:39]} 35. dxc5 {[%emt 0:01:08]} bxc5 {[%emt 0:00:54]} 36. Rd2 {[%emt 0:01:08]} Qb5+ {[%emt 0:00:52]} 37. Ke1 {[%emt 0:00:02]} d4 {[%emt 0:01:27]} 38. exd4 {[%emt 0:01:03]} Re8+ {[%emt 0:00:18]} 39. Kd1 {[%emt 0:00:02]} c4 {[%emt 0:01:04]} 40. d5 {[%emt 0:01:01]} Rd8 {[%emt 0:00:34]} 41. Qf3 {[%emt 0:01:25]} Rd6 {[%emt 0:00:31]} 42. Kc2 {[%emt 0:00:57]} Qe8 {[%emt 0:00:25]} 43. Qf5+ {[%emt 0:00:55]} Kh8 {[%emt 0:00:01]} 44. f4 {[%emt 0:00:34]} c3 {[%emt 0:00:37]} 45. Qe5 {[%emt 0:01:46]} Qb5 {[%emt 0:00:57]} 46. Qxc3 {[%emt 0:00:22]} Rxd5 {[%emt 0:00:23]} 47. Rxd5 {[%emt 0:00:35]} Qxd5 {[%emt 0:00:01]} 48. g3 {[%emt 0:00:30]} Qg2+ {[%emt 0:00:13]} 49. Qd2 {[%emt 0:00:04]} Qc6+ {[%emt 0:00:01]} 50. Kd3 {[%emt 0:00:18]} Qf3+ {[%emt 0:00:40]} 51. Kd4 {[%emt 0:00:50]} Qb3 {[%emt 0:01:42]} 52. Kc5 {[%emt 0:00:23]} Qb8 {[%emt 0:00:24]} 53. Qc3 {[%emt 0:00:36]} Kh7 {[%emt 0:00:25]} 54. Qc2+ {[%emt 0:00:40]} Kh8 {[%emt 0:00:00]} 55. Qc3 {[%emt 0:00:22]} Kh7 {[%emt 0:00:03]} 56. Qb4 {[%emt 0:00:31]} Qc7+ {[%emt 0:00:03]} 57. Kd5 {[%emt 0:00:22]} Qd7+ {[%emt 0:00:08]} 58. Ke4 {[%emt 0:00:19]} Qc6+ {[%emt 0:00:31]} 59. Kd4 {[%emt 0:00:41]} Qc2 {[%emt 0:00:20]} 60. h4 {[%emt 0:00:27]} Qf2+ {[%emt 0:00:11]} 61. Ke5 {[%emt 0:00:21]} Qxg3 {[%emt 0:00:30]} 62. Qe4+ {[%emt 0:00:33]} Kh8 {[%emt 0:00:21]} 63. Qa8+ {[%emt 0:00:15]} Kh7 {[%emt 0:00:01]} 64. Qxa4 {[%emt 0:00:07]} Qxh4 {[%emt 0:00:09]} 65. Qe4+ {[%emt 0:00:32]} Kh8 {[%emt 0:00:00]} 66. b4 {[%emt 0:00:21]} Qe7+ {[%emt 0:00:17]} 67. Kd4 {[%emt 0:00:34]} Qa7+ {[%emt 0:00:01]} 68. Kd5 {[%emt 0:00:26]} Qb7+ {[%emt 0:00:10]} 69. Kd4 {[%emt 0:00:32]} Qa7+ {[%emt 0:00:01]} 70. Kc4 {[%emt 0:01:11]} Qxa3 {[%emt 0:00:06]} 71. Qe5 {[%emt 0:00:24]} Qa4 {[%emt 0:00:46]} 72. Kc5 {[%emt 0:00:32]} Qa7+ {[%emt 0:00:07]} 73. Kc6 {[%emt 0:00:40]} Qa6+ {[%emt 0:00:19]} 1/2-1/2

[Event "EYCC O18-ch 2024"]
[Site "Prague"]
[Date "2024.08.23"]
[Round "2.8"]
[White "Soderstrom, Adrian"]
[Black "Kocsmar, Akos"]
[Result "1-0"]
[ECO "C55"]
[WhiteElo "2318"]
[BlackElo "2187"]
[Annotator "RC"]
[PlyCount "49"]
[EventDate "2024.08.19"]
[EventType "swiss"]
[EventCountry "CZE"]
[SourceTitle "playchess.com"]
[Source "ChessBase"]
[SourceQuality "1"]
[TimeControl "5400+30"]

1. e4 {[%emt 0:00:09]} e5 {[%emt 0:00:22]} 2. Nf3 {[%emt 0:00:09]} Nc6 {[%emt 0:00:07]} 3. Bc4 {[%emt 0:00:17]} Nf6 {[%emt 0:00:39]} 4. d4 {[%emt 0:00:40]} exd4 {[%emt 0:00:46]} 5. e5 {[%emt 0:00:23]} Ne4 {[%emt 0:04:25]} 6. Qe2 {[%emt 0:02:34]} Nc5 {[%emt 0:02:18]} 7. O-O {[%emt 0:00:21]} Ne6 {[%emt 0:06:14]} 8. Bxe6 {[%emt 0:04:58]} dxe6 {[%emt 0:04:54]} 9. Rd1 {[%emt 0:00:51]} Be7 {[%emt 0:04:37]} 10. Nc3 {[%emt 0:03:43]} O-O {[%emt 0:06:50]} 11. Nb5 {[%emt 0:00:42]} Bd7 {[%emt 0:02:55]} 12. Nbxd4 {[%emt 0:06:02]} Qc8 {[%emt 0:08:12]} 13. Nb3 {[%emt 0:11:28]} Rd8 {[%emt 0:03:53]} 14. Bg5 {[%emt 0:09:50]} Bxg5 {[%emt 0:11:54]} 15. Nxg5 {[%emt 0:00:04]} h6 {[%emt 0:00:07]} 16. Nh3 {[%emt 0:06:35]} Be8 {[%emt 0:05:15]} 17. Nf4 {[%emt 0:00:36]} Rd7 {[%emt 0:04:01]} 18. Nh5 {[%emt 0:02:12]} Ne7 {[%emt 0:02:15]} 19. Nc5 {[%emt 0:03:41]} Rxd1+ {[%emt 0:02:25]} 20. Rxd1 {[%emt 0:00:04]} Bc6 {[%emt 0:00:10]} 21. Ne4 {[%emt 0:05:26]} Qf8 {[%emt 0:02:53]} 22. Rd4 {[%emt 0:10:56]} Rd8 {[%emt 0:04:45]} 23. Nef6+ {[%emt 0:02:17]} gxf6 {[%emt 0:03:19]} 24. Nxf6+ {[%emt 0:00:14]} Kh8 {[%emt 0:02:03]} 25. Qd3 {[%emt 0:00:06]} 1-0

[Event "EYCC O18-ch 2024"]
[Site "Prague"]
[Date "2024.08.23"]
[Round "2.9"]
[White "Bokhnak, Timofey"]
[Black "Borrmann, Laurenz"]
[Result "1/2-1/2"]
[ECO "B13"]
[WhiteElo "2273"]
[BlackElo "2427"]
[Annotator "ChessBase"]
[PlyCount "109"]
[EventDate "2024.08.19"]
[EventType "swiss"]
[EventCountry "CZE"]
[SourceTitle "playchess.com"]
[Source "ChessBase"]
[SourceQuality "1"]
[TimeControl "5400+30"]

1. e4 {[%emt 0:00:11]} c6 {[%emt 0:01:08]} 2. d4 {[%emt 0:00:17]} d5 {[%emt 0:00:08]} 3. exd5 {[%emt 0:00:06]} cxd5 {[%emt 0:00:07]} 4. Bd3 {[%emt 0:00:03]} Nf6 {[%emt 0:00:47]} 5. Nf3 {[%emt 0:00:56]} Nc6 {[%emt 0:01:21]} 6. c3 {[%emt 0:00:06]} e6 {[%emt 0:01:54]} 7. Bf4 Nh5 {[%emt 0:05:41]} 8. Bg5 {[%emt 0:04:23]} Qc7 {[%emt 0:07:04]} 9. O-O {[%emt 0:04:07]} Bd6 {[%emt 0:01:14]} 10. Ne5 {[%emt 0:13:55]} g6 {[%emt 0:09:59]} 11. Nxc6 {[%emt 0:11:37]} bxc6 {[%emt 0:09:12]} 12. g3 {[%emt 0:00:43]} f6 {[%emt 0:10:20]} 13. Be3 {[%emt 0:03:22]} O-O {[%emt 0:05:37]} 14. c4 {[%emt 0:00:31]} Qf7 {[%emt 0:05:35]} 15. Nd2 {[%emt 0:03:33]} e5 {[%emt 0:01:58]} 16. Rc1 {[%emt 0:07:26]} Rb8 {[%emt 0:09:01]} 17. Nb3 {[%emt 0:03:40]} Bd7 {[%emt 0:04:20]} 18. f3 {[%emt 0:10:08]} a5 {[%emt 0:03:49]} 19. cxd5 {[%emt 0:02:00]} cxd5 {[%emt 0:00:08]} 20. Qe2 {[%emt 0:01:32]} Rfe8 {[%emt 0:00:55]} 21. Qf2 {[%emt 0:00:56]} Bb5 {[%emt 0:01:07]} 22. Bxb5 {[%emt 0:02:29]} Rxb5 {[%emt 0:00:04]} 23. Qe2 {[%emt 0:01:35]} Qb7 {[%emt 0:00:27]} 24. Qc2 {[%emt 0:03:44]} Ng7 {[%emt 0:02:48]} 25. Qc6 {[%emt 0:02:44]} Qxc6 {[%emt 0:01:20]} 26. Rxc6 {[%emt 0:00:02]} Nf5 {[%emt 0:00:09]} 27. Bf2 {[%emt 0:01:16]} a4 {[%emt 0:04:22]} 28. Nc1 {[%emt 0:01:09]} Bb8 {[%emt 0:01:04]} 29. b3 {[%emt 0:01:49]} exd4 {[%emt 0:06:31]} 30. Rxf6 {[%emt 0:01:27]} Bd6 {[%emt 0:01:58]} 31. bxa4 {[%emt 0:05:00]} Rb4 {[%emt 0:01:01]} 32. Rd1 {[%emt 0:02:13]} Rb1 {[%emt 0:03:09]} 33. Kg2 {[%emt 0:05:24]} Ba3 {[%emt 0:00:51]} 34. Rc6 {[%emt 0:00:22]} Ne3+ {[%emt 0:00:16]} 35. Bxe3 {[%emt 0:00:02]} dxe3 {[%emt 0:00:01]} 36. Re1 {[%emt 0:01:00]} d4 {[%emt 0:01:14]} 37. Nd3 {[%emt 0:00:15]} Rxe1 {[%emt 0:00:35]} 38. Nxe1 {[%emt 0:00:02]} Bb4 {[%emt 0:00:06]} 39. Kf1 {[%emt 0:00:32]} Ra8 {[%emt 0:01:09]} 40. Rc4 {[%emt 0:00:44]} e2+ {[%emt 0:00:19]} 41. Kf2 {[%emt 0:00:28]} Rxa4 {[%emt 0:00:16]} 42. Kxe2 {[%emt 0:00:45]} Rxa2+ {[%emt 0:00:07]} 43. Nc2 {[%emt 0:00:32]} Bc3 {[%emt 0:00:26]} 44. Kd3 {[%emt 0:00:06]} h5 {[%emt 0:00:55]} 45. h4 {[%emt 0:01:01]} Kg7 {[%emt 0:00:30]} 46. Nxd4 {[%emt 0:00:30]} Bxd4 {[%emt 0:00:10]} 47. Rxd4 {[%emt 0:00:07]} Rg2 {[%emt 0:00:07]} 48. g4 {[%emt 0:00:26]} hxg4 {[%emt 0:00:10]} 49. fxg4 {[%emt 0:01:15]} Kf6 {[%emt 0:00:15]} 50. Ke3 {[%emt 0:00:18]} Rh2 {[%emt 0:00:17]} 51. Rd6+ {[%emt 0:01:10]} Ke5 {[%emt 0:00:21]} 52. Rxg6 {[%emt 0:00:05]} Rxh4 {[%emt 0:00:04]} 53. Rg5+ {[%emt 0:00:05]} Kf6 {[%emt 0:00:04]} 54. Kf4 {[%emt 0:00:06]} Rh1 {[%emt 0:00:04]} 55. Ra5 {[%emt 0:00:08]} 1/2-1/2